bitfinex-derivatives/quotes_BTCF0:USTF0_20230701
["timestamp","ask_amount","ask_price","bid_price","bid_amount"]
[1688211851596,0.4111244,30566.0,30565.0,0.3534]
[1688211851798,0.49921687,30566.0,30565.0,0.3534]
[1688211851999,0.583764,30566.0,30565.0,0.3534]
[1688211852198,0.583764,30566.0,30565.0,0.373034]
[1688211852499,0.67492005,30566.0,30565.0,0.373034]
[1688211852796,0.75097995,30566.0,30565.0,0.373034]
[1688211852996,0.67492005,30566.0,30565.0,0.373034]
[1688211853196,0.62492005,30566.0,30565.0,0.373034]
[1688211853594,0.62492005,30566.0,30565.0,0.39868785]
[1688211854892,0.64314974,30566.0,30565.0,0.3798384]
[1688211855097,0.64658444,30566.0,30565.0,0.3798384]
[1688211855294,0.62835475,30566.0,30565.0,0.3798384]
[1688211855502,0.64658444,30566.0,30565.0,0.3798384]
[1688211856006,0.62492005,30566.0,30565.0,0.3798384]
[1688211856202,0.62835475,30566.0,30565.0,0.3798384]
[1688211856594,0.64658444,30566.0,30565.0,0.3798384]
[1688211856790,0.62835475,30566.0,30565.0,0.3798384]
[1688211857107,0.64658444,30566.0,30565.0,0.3798384]
[1688211857301,0.05,30570.0,30565.0,1.11298785]
[1688211857602,0.05,30570.0,30565.0,0.3872384]
[1688211857603,0.49062825,30566.0,30565.0,0.3872384]
[1688211857905,0.10439551,30570.0,30569.0,0.371932]
[1688211858099,0.21177509,30570.0,30569.0,0.726432]
[1688211858402,0.63844567,30570.0,30569.0,0.72681309]
[1688211858600,0.57955167,30570.0,30569.0,0.72681309]
[1688211858808,0.57611697,30570.0,30569.0,0.72681309]
[1688211859006,0.59574797,30570.0,30569.0,0.74566254]
[1688211859704,0.59574797,30570.0,30569.0,0.75704721]
[1688211859904,0.59574797,30570.0,30569.0,0.74566254]
[1688211860099,0.57611697,30570.0,30569.0,0.74566254]
[1688211860305,0.59574797,30570.0,30569.0,0.37451309]
[1688211860807,0.61741236,30570.0,30569.0,0.37451309]
[1688211863298,0.73534528,30570.0,30569.0,0.37451309]
[1688211864608,0.61741236,30570.0,30569.0,0.37451309]
[1688211865796,0.53276096,30570.0,30569.0,0.37451309]
[1688211866512,0.53276096,30570.0,30569.0,0.27431309]
[1688211866806,0.53276096,30570.0,30569.0,0.1435603]
[1688211867109,0.53276096,30570.0,30569.0,0.1239283]
[1688211867311,0.53276096,30570.0,30569.0,0.12354721]
[1688211868715,0.53276096,30570.0,30569.0,0.14317921]
[1688211871810,0.52932626,30570.0,30569.0,0.14317921]
[1688211872311,0.52932626,30570.0,30569.0,0.14804432]
[1688211872616,0.53276096,30570.0,30569.0,0.14804432]
[1688211873114,0.61741035,30570.0,30569.0,0.14804432]
[1688211876006,0.61741035,30570.0,30569.0,0.12157675]
[1688211878014,0.59574596,30570.0,30569.0,0.12157675]
[1688211878707,0.59574596,30570.0,30569.0,0.47407675]
[1688211878904,0.59574596,30570.0,30569.0,0.12157675]
[1688211879304,0.61397565,30570.0,30569.0,0.12157675]
[1688211879713,0.57611496,30570.0,30569.0,0.1404262]
[1688211880704,0.49146557,30570.0,30569.0,0.1404262]
[1688211881715,0.53276096,30570.0,30569.0,0.12157675]
[1688211882118,0.51453127,30570.0,30569.0,0.12157675]
[1688211882308,0.49490027,30570.0,30569.0,0.12157675]
[1688211882710,0.51312996,30570.0,30569.0,0.12157675]
[1688211882906,0.49146557,30570.0,30569.0,0.12157675]
[1688211883118,0.49146557,30570.0,30569.0,0.1404262]
[1688211883922,0.49490027,30570.0,30569.0,0.12157675]
[1688211884128,0.51312996,30570.0,30569.0,0.12157675]
[1688211884607,0.51312996,30570.0,30569.0,0.47607675]
[1688211884608,0.49146557,30570.0,30569.0,0.47607675]
[1688211886024,0.49146557,30570.0,30569.0,0.4949262]
[1688211886213,0.49146557,30570.0,30569.0,0.50631087]
[1688211886416,0.49146557,30570.0,30569.0,0.4949262]
[1688211886615,0.49146557,30570.0,30569.0,0.51281087]
[1688211886817,0.49146557,30570.0,30569.0,0.4949262]
[1688211887822,0.49146557,30570.0,30569.0,0.50631087]
[1688211888122,0.57610834,30570.0,30569.0,0.4949262]
[1688211889019,0.57610834,30570.0,30569.0,0.50631087]
[1688211889612,0.59433803,30570.0,30569.0,0.4759141]
[1688211890213,0.59777273,30570.0,30569.0,0.4759141]
[1688211891024,0.51312996,30570.0,30569.0,0.4759141]
[1688211891524,0.53276096,30570.0,30569.0,0.4759141]
[1688211892013,0.49146557,30570.0,30569.0,0.50614822]
[1688211892214,0.49146557,30570.0,30569.0,0.49476355]
[1688211892722,0.49146557,30570.0,30569.0,0.4759141]
[1688211893426,0.49490027,30570.0,30569.0,0.4759141]
[1688211893919,0.49146557,30570.0,30569.0,0.50614822]
[1688211894926,0.49146557,30570.0,30569.0,0.4759141]
[1688211895121,0.49146557,30570.0,30569.0,0.48729877]
[1688211895423,0.49146557,30570.0,30569.0,0.4759141]
[1688211896221,0.49146557,30570.0,30569.0,0.49476355]
[1688211896719,0.49146557,30570.0,30569.0,0.50614822]
[1688211897227,0.49146557,30570.0,30569.0,0.51264822]
[1688211900424,0.49146557,30570.0,30569.0,0.87344822]
[1688211901031,0.49146557,30570.0,30569.0,0.86694822]
[1688211901220,0.49146557,30570.0,30569.0,0.85556355]
[1688211902228,0.49146557,30570.0,30569.0,0.86688161]
[1688211902723,0.49146557,30570.0,30569.0,0.83664749]
[1688211903226,0.49490027,30570.0,30569.0,0.83664749]
[1688211903430,0.49490027,30570.0,30569.0,0.48214749]
[1688211903626,0.51312996,30570.0,30569.0,0.48214749]
[1688211906831,0.49146557,30570.0,30569.0,0.48214749]
[1688211907335,0.49146557,30570.0,30569.0,0.51238161]
[1688211907536,0.49146557,30570.0,30569.0,0.50099694]
[1688211908329,0.49146557,30570.0,30569.0,0.90989245]
[1688211908534,0.49146557,30570.0,30569.0,0.86688161]
[1688211910023,0.49146557,30570.0,30569.0,0.85549694]
[1688211910437,0.49146557,30570.0,30569.0,0.86688161]
[1688211911034,0.49146557,30570.0,30569.0,0.85549694]
[1688211911431,0.49146557,30570.0,30569.0,0.86688161]
[1688211912341,0.49146557,30570.0,30569.0,0.85549694]
[1688211912540,0.49146557,30570.0,30569.0,0.12134749]
[1688211912743,0.49490027,30570.0,30569.0,0.11692627]
[1688211913038,0.51312996,30570.0,30569.0,0.11692627]
[1688211913333,0.51312996,30570.0,30569.0,0.12097516]
[1688211914441,0.51312996,30570.0,30569.0,0.12150801]
[1688211915540,0.51312996,30570.0,30569.0,0.12127298]
[1688211916833,0.53276096,30570.0,30569.0,0.12127298]
[1688211917036,0.53276096,30570.0,30569.0,0.1167802]
[1688211917431,0.53276096,30570.0,30569.0,0.11624735]
[1688211918137,0.49490027,30570.0,30569.0,0.11624735]
[1688211918340,0.49146557,30570.0,30569.0,0.11624735]
[1688211918543,0.49146557,30570.0,30569.0,0.12073765]
[1688211918837,0.50969526,30570.0,30569.0,0.12073765]
[1688211919043,0.49490027,30570.0,30569.0,0.12073765]
[1688211919638,0.51312996,30570.0,30569.0,0.12073765]
[1688211919835,0.51312996,30570.0,30569.0,0.11624735]
[1688211920844,0.88726096,30570.0,30569.0,0.373032]
[1688211921040,1.24806096,30570.0,30569.0,0.37752106]
[1688211921435,1.24806096,30570.0,30569.0,0.37805391]
[1688211921640,0.88726096,30570.0,30569.0,0.37805391]
[1688211924749,0.88726096,30570.0,30569.0,0.37705391]
[1688211927544,1.24806096,30570.0,30569.0,0.37705391]
[1688211928142,1.049084,30567.0,30563.0,0.3545]
[1688211928342,0.019633,30566.0,30565.0,0.019634]
[1688211928545,0.374133,30566.0,30564.0,0.058903]
[1688211928738,0.37616439,30565.0,30564.0,0.058903]
[1688211928939,0.39579839,30565.0,30563.0,0.374135]
[1688211929244,0.3545,30564.0,30563.0,0.374135]
[1688211929442,0.39579939,30564.0,30563.0,0.374135]
[1688211932452,0.39579939,30564.0,30563.0,0.37443157]
[1688211934346,0.75659939,30564.0,30563.0,0.01993157]
[1688211934743,0.75659939,30564.0,30563.0,0.00029657]
[1688211935439,0.87453023,30564.0,30563.0,0.00029657]
[1688211936352,0.87453023,30564.0,30563.0,0.00058835]
[1688211936547,0.87453023,30564.0,30563.0,0.02022335]
[1688211937053,0.87453023,30564.0,30563.0,0.01022335]
[1688211937255,0.87453023,30564.0,30563.0,0.01051513]
[1688211937451,0.87453023,30564.0,30563.0,0.00029178]
[1688211937750,0.87453023,30564.0,30561.0,0.05940176]
[1688211937751,0.0034347,30563.0,30561.0,0.05940176]
[1688211938052,0.019636,30563.0,30562.0,0.019636]
[1688211938347,0.39410039,30563.0,30562.0,0.01997171]
[1688211938948,0.39410039,30563.0,30562.0,0.00033571]
[1688211940248,0.39410039,30563.0,30562.0,0.01997171]
[1688211940752,0.87453023,30564.0,30562.0,0.39332116]
[1688211941149,0.87956754,30564.0,30562.0,0.37447171]
[1688211941449,0.02166439,30563.0,30562.0,0.37447171]
[1688211941749,0.04129939,30563.0,30562.0,0.37447171]
[1688211944453,0.019635,30563.0,30562.0,0.37447171]
[1688211945046,0.04129939,30563.0,30562.0,0.37447171]
[1688211946348,0.0230697,30563.0,30562.0,0.37447171]
[1688211946956,0.02166439,30563.0,30562.0,0.37447171]
[1688211947256,0.0034347,30563.0,30562.0,0.73527171]
[1688211948154,0.44671939,30564.0,30562.0,0.75412116]
[1688211948453,0.4319244,30564.0,30563.0,0.370935]
[1688211948859,0.45015409,30564.0,30563.0,0.370935]
[1688211949454,0.45015409,30564.0,30563.0,0.37127059]
[1688211950449,0.40106609,30564.0,30563.0,0.37127059]
[1688211950755,0.3794017,30564.0,30563.0,0.37127059]
[1688211951158,0.3794017,30564.0,30563.0,0.39012004]
[1688211951355,0.3794017,30564.0,30563.0,0.37127059]
[1688211951653,0.39763139,30564.0,30563.0,0.37127059]
[1688211951855,0.40106609,30564.0,30563.0,0.37127059]
[1688211952251,0.3828364,30564.0,30563.0,0.37106894]
[1688211952455,0.3794017,30564.0,30563.0,0.37106894]
[1688211952853,0.39763139,30564.0,30563.0,0.37106894]
[1688211953848,0.40286609,30564.0,30563.0,0.37106894]
[1688211954057,0.42250109,30564.0,30563.0,0.37106894]
[1688211954255,0.4008367,30564.0,30563.0,0.37106894]
[1688211954460,0.41906639,30564.0,30563.0,0.37106894]
[1688211954665,0.06456639,30564.0,30563.0,0.37106894]
[1688211955053,0.0463367,30564.0,30563.0,0.37106894]
[1688211955451,0.0301364,30564.0,30563.0,0.37106894]
[1688211955658,0.0497694,30564.0,30563.0,0.37106894]
[1688211956162,0.0301364,30564.0,30563.0,0.37106894]
[1688211956558,0.0497684,30564.0,30563.0,0.37106894]
[1688211957159,0.4042684,30564.0,30563.0,0.01997059]
[1688211957464,0.42249809,30564.0,30563.0,0.01997059]
[1688211960267,0.0267017,30564.0,30563.0,0.37207059]
[1688211960656,0.47243084,30566.0,30563.0,0.39092004]
[1688211960972,0.47243084,30566.0,30565.0,0.373032]
[1688211961171,0.47243084,30566.0,30565.0,0.39188145]
[1688211961763,0.51372723,30566.0,30565.0,0.373032]
[1688211962959,0.39579639,30566.0,30565.0,0.373032]
[1688211963365,0.39579639,30566.0,30565.0,0.37334996]
[1688211963566,0.39236169,30566.0,30565.0,0.37334996]
[1688211963764,0.41904514,30566.0,30565.0,0.37334996]
[1688211964165,0.53697598,30566.0,30565.0,0.37334996]
[1688211964559,0.53861068,30566.0,30565.0,0.01994996]
[1688211968068,1.64017357,30566.0,30565.0,0.01994996]
[1688211969265,1.64017357,30566.0,30563.0,0.058897]
[1688211969467,0.372933,30564.0,30563.0,0.058897]
[1688211969668,0.39116269,30564.0,30563.0,0.058897]
[1688211970176,0.39459739,30564.0,30563.0,0.058897]
[1688211970375,0.39459739,30564.0,30563.0,0.05921577]
[1688211971883,0.39459739,30564.0,30563.0,0.04921855]
[1688211972084,0.39459739,30564.0,30563.0,0.0589]
[1688211972278,0.39459739,30564.0,30563.0,0.05927854]
[1688211972987,0.02166439,30563.0,30561.0,0.31002726]
[1688211973285,0.019634,30563.0,30562.0,0.0416348]
[1688211973484,0.690034,30563.0,30562.0,0.0416348]
[1688211973687,0.71169839,30563.0,30562.0,0.0416348]
[1688211974573,0.71169839,30563.0,30561.0,0.019634]
[1688211974778,0.3562347,30562.0,30561.0,0.019634]
[1688211974977,0.39409839,30562.0,30561.0,0.019634]
[1688211978794,0.39409839,30562.0,30560.0,0.340336]
[1688211978870,0.37616439,30561.0,30560.0,0.340336]
[1688211979080,0.39580039,30561.0,30560.0,0.340336]
[1688211980384,0.39580039,30561.0,30560.0,0.34074362]
[1688211986095,0.39580039,30561.0,30560.0,0.34054868]
[1688211989703,0.02650274,30562.0,30560.0,1.07373335]
[1688211989881,0.1070573,30563.0,30561.0,0.3589]
[1688211990081,0.1070573,30563.0,30562.0,0.75138445]
[1688211990397,1.71728661,30567.0,30562.0,0.76958589]
[1688211990398,1.02012261,30567.0,30562.0,0.76958589]
[1688211990589,1.02012261,30567.0,30566.0,0.7121]
[1688211990891,1.04567957,30567.0,30566.0,0.731733]
[1688211991289,1.06390926,30567.0,30566.0,0.73204678]
[1688211991587,1.06390926,30567.0,30566.0,1.05454678]
[1688211991588,1.04567957,30567.0,30566.0,1.05454678]
[1688211991978,1.06390926,30567.0,30566.0,1.05454678]
[1688211992184,1.06734396,30567.0,30566.0,1.05454678]
[1688211992897,1.04911427,30567.0,30566.0,1.05454678]
[1688211993387,1.04567957,30567.0,30566.0,1.07339623]
[1688211993887,1.04567957,30567.0,30566.0,1.05454678]
[1688211994482,1.06390926,30567.0,30566.0,1.05454678]
[1688211994984,1.06734396,30567.0,30566.0,1.05454678]
[1688211995883,1.04911427,30567.0,30566.0,1.05454678]
[1688211996086,1.06734396,30567.0,30566.0,1.05454678]
[1688211996283,1.04911427,30567.0,30566.0,1.05454678]
[1688211996592,1.04567957,30567.0,30566.0,1.05454678]
[1688211996984,1.06390926,30567.0,30566.0,1.05454678]
[1688211997893,1.06734396,30567.0,30566.0,1.05454678]
[1688211998094,1.04567957,30567.0,30566.0,1.05454678]
[1688211998994,1.06390926,30567.0,30566.0,1.05454678]
[1688211999198,1.04567957,30567.0,30566.0,1.05454678]
[1688211999388,1.06390926,30567.0,30566.0,1.05454678]
[1688211999794,1.06390926,30567.0,30566.0,1.03491378]
[1688211999997,1.06734396,30567.0,30566.0,1.05454878]
[1688212000185,1.06734396,30567.0,30566.0,0.73204878]
[1688212000382,1.06734396,30567.0,30566.0,0.71241378]
[1688212000696,1.06734396,30567.0,30566.0,0.73204878]
[1688212000887,1.04567957,30567.0,30566.0,0.75089823]
[1688212001295,1.04567957,30567.0,30566.0,0.73204878]
[1688212001502,1.06390926,30567.0,30566.0,0.73204878]
[1688212001691,1.06734396,30567.0,30566.0,0.73204878]
[1688212002389,1.06734396,30567.0,30566.0,0.73204778]
[1688212002592,1.06734396,30567.0,30566.0,0.37124778]
[1688212004199,1.06734396,30567.0,30566.0,0.71241378]
[1688212004720,1.41974396,30567.0,30566.0,0.71241378]
[1688212005094,1.41974396,30567.0,30566.0,0.35161378]
[1688212005993,1.41974396,30567.0,30566.0,0.37124878]
[1688212006193,1.41974396,30567.0,30566.0,0.35161378]
[1688212006892,1.41974396,30567.0,30566.0,0.37124778]
[1688212009401,1.41630926,30567.0,30566.0,0.37124778]
[1688212010696,1.41630926,30567.0,30566.0,0.68534778]
[1688212012304,1.41630926,30567.0,30566.0,0.70419723]
[1688212012803,1.41630926,30567.0,30566.0,0.68534778]
[1688212013007,1.41974396,30567.0,30566.0,0.68534778]
[1688212014509,1.06734396,30567.0,30566.0,0.68534778]
[1688212015504,1.04567957,30567.0,30566.0,0.68534778]
[1688212015706,1.04567957,30567.0,30566.0,0.70419723]
[1688212016708,1.06390926,30567.0,30566.0,0.70419723]
[1688212017004,1.04567957,30567.0,30566.0,0.70419723]
[1688212017411,1.06390926,30567.0,30566.0,0.70419723]
[1688212017800,1.04567957,30567.0,30566.0,0.70419723]
[1688212018507,1.06390926,30567.0,30566.0,0.70419723]
[1688212018903,1.06390926,30567.0,30566.0,0.68534778]
[1688212019906,1.06390926,30567.0,30566.0,0.70419723]
[1688212021713,1.06390926,30567.0,30566.0,0.68534778]
[1688212022110,1.06734396,30567.0,30566.0,0.68534778]
[1688212031709,1.06734396,30567.0,30566.0,1.04614778]
[1688212032106,1.06734396,30567.0,30566.0,0.73204778]
[1688212032707,1.04567957,30567.0,30566.0,0.73204778]
[1688212032901,1.1117001,30567.0,30566.0,0.73204778]
[1688212033106,0.1117001,30567.0,30566.0,0.73204778]
[1688212033305,0.1117001,30567.0,30566.0,0.75089723]
[1688212033505,0.12992979,30567.0,30566.0,0.75089723]
[1688212033705,0.1117001,30567.0,30566.0,0.75089723]
[1688212033907,0.12992979,30567.0,30566.0,0.75089723]
[1688212034111,0.1117001,30567.0,30566.0,0.75089723]
[1688212034512,0.12992979,30567.0,30566.0,0.75089723]
[1688212039409,0.12992979,30567.0,30566.0,0.73204778]
[1688212040010,0.1117001,30567.0,30566.0,0.73204778]
[1688212040211,0.1117001,30567.0,30566.0,0.75089723]
[1688212040612,0.04567957,30567.0,30566.0,0.75089723]
[1688212040818,0.06390926,30567.0,30566.0,0.73204778]
[1688212041020,0.04567957,30567.0,30566.0,0.73204778]
[1688212041528,0.06390926,30567.0,30566.0,0.73204778]
[1688212042611,0.06390926,30567.0,30566.0,0.75089723]
[1688212042928,0.04567957,30567.0,30566.0,0.75089723]
[1688212043525,0.06390926,30567.0,30566.0,0.75089723]
[1688212044319,0.04567957,30567.0,30566.0,0.75089723]
[1688212044826,0.06390926,30567.0,30566.0,0.75089723]
[1688212045024,0.06390926,30567.0,30566.0,0.73204778]
[1688212045211,0.04911427,30567.0,30566.0,0.73204778]
[1688212045416,0.06734396,30567.0,30566.0,0.73204778]
[1688212046120,0.06734396,30567.0,30566.0,0.7318933]
[1688212046623,0.04567957,30567.0,30566.0,0.7318933]
[1688212047320,0.06390926,30567.0,30566.0,0.7318933]
[1688212047917,0.04567957,30567.0,30566.0,0.7318933]
[1688212048121,0.04911427,30567.0,30566.0,0.7318933]
[1688212049226,0.04567857,30567.0,30566.0,0.7318933]
[1688212049518,0.058893,30569.0,30566.0,0.75074275]
[1688212049751,0.058893,30569.0,30568.0,0.3608]
[1688212049927,0.058893,30569.0,30568.0,0.75057945]
[1688212050433,0.43711084,30572.0,30569.0,0.39097845]
[1688212050434,0.11840136,30572.0,30569.0,0.39097845]
[1688212050627,0.11840136,30572.0,30571.0,0.733828]
[1688212050825,0.00049052,30572.0,30571.0,0.74521267]
[1688212051022,0.00049052,30572.0,30571.0,0.76406212]
[1688212051411,0.00017733,30575.0,30572.0,0.01138467]
[1688212051615,1.0,30585.0,30579.0,0.0065]
[1688212051820,1.019619,30585.0,30584.0,1.08692]
[1688212052027,0.058858,30586.0,30584.0,1.16016496]
[1688212052227,0.11784835,30587.0,30585.0,0.3534]
[1688212052533,0.11784835,30587.0,30584.0,0.43481551]
[1688212052534,0.16415124,30587.0,30586.0,0.73414945]
[1688212052727,0.2281733,30587.0,30586.0,0.73414945]
[1688212053021,0.11032495,30587.0,30586.0,0.73414945]
[1688212053526,0.11032495,30587.0,30586.0,0.75414749]
[1688212053726,0.46302495,30587.0,30586.0,0.71567904]
[1688212053930,0.46482495,30587.0,30586.0,0.00037904]
[1688212054222,0.48648934,30587.0,30586.0,0.36117904]
[1688212054428,0.48648934,30587.0,30583.0,0.73301042]
[1688212054630,0.3533,30584.0,30583.0,0.38091042]
[1688212054829,0.37292,30584.0,30583.0,0.38091042]
[1688212055025,1.37292,30584.0,30583.0,0.00049042]
[1688212055621,1.51243274,30584.0,30583.0,0.00049042]
[1688212056335,1.51243274,30584.0,30583.0,0.02044328]
[1688212056528,0.49420305,30584.0,30583.0,0.02044328]
[1688212056923,0.3763547,30584.0,30583.0,0.02044328]
[1688212057224,0.39458439,30584.0,30583.0,0.02044328]
[1688212058725,0.3763547,30584.0,30583.0,0.02044328]
[1688212059331,0.39458439,30584.0,30583.0,0.02011042]
[1688212059532,0.3763547,30584.0,30583.0,0.02011042]
[1688212060324,0.37292,30584.0,30583.0,0.02044338]
[1688212060522,0.08498219,30584.0,30583.0,0.37494338]
[1688212060928,0.08498219,30584.0,30583.0,0.44818834]
[1688212061332,0.08498219,30584.0,30583.0,0.39379283]
[1688212062126,0.01962,30584.0,30583.0,0.39379283]
[1688212062722,0.01962,30584.0,30583.0,0.75459283]
[1688212063519,0.03199,30584.0,30583.0,0.75459283]
[1688212065642,0.03199,30584.0,30583.0,0.73574338]
[1688212066036,0.03199,30584.0,30583.0,0.73564709]
[1688212066238,0.03199,30584.0,30583.0,0.75449654]
[1688212067739,0.03199,30584.0,30583.0,0.73564709]
[1688212068146,0.38649,30584.0,30583.0,0.38114709]
[1688212068435,0.3899247,30584.0,30583.0,0.38114709]
[1688212068643,0.73285439,30584.0,30583.0,0.38114709]
[1688212069049,0.7992312,30584.0,30583.0,0.38114709]
[1688212069244,0.78100151,30584.0,30583.0,0.38114709]
[1688212071334,0.77756681,30584.0,30583.0,0.38114709]
[1688212071734,0.42306681,30584.0,30583.0,0.75239654]
[1688212072344,0.42306681,30584.0,30583.0,0.75250775]
[1688212074154,0.09836681,30584.0,30583.0,0.75250775]
[1688212074359,0.07874681,30584.0,30583.0,0.75250775]
[1688212078057,0.07874681,30584.0,30583.0,0.75237844]
[1688212080261,0.07874681,30584.0,30583.0,0.75887844]
[1688212081269,0.71645,30589.0,30583.0,0.75887844]
[1688212081270,0.049018,30604.0,30593.0,0.05]
[1688212081459,0.3545,30603.0,30598.0,1.0761]
[1688212081770,0.3545,30603.0,30602.0,0.3608]
[1688212081771,1.05552,30603.0,30602.0,0.3608]
[1688212081954,1.49287414,30603.0,30601.0,0.3608]
[1688212082157,0.84474285,30602.0,30601.0,0.380409]
[1688212082361,0.3545,30602.0,30601.0,0.39925845]
[1688212082561,0.88774675,30602.0,30601.0,0.380409]
[1688212082861,0.86129687,30602.0,30601.0,0.380409]
[1688212083167,0.88774675,30602.0,30601.0,0.380409]
[1688212083457,0.86129687,30602.0,30601.0,0.38083903]
[1688212084055,0.87952656,30602.0,30601.0,0.38083903]
[1688212084258,0.86129687,30602.0,30601.0,0.37970093]
[1688212084453,0.86473157,30602.0,30601.0,0.37970093]
[1688212084674,0.88296126,30602.0,30601.0,0.37970093]
[1688212084965,0.86473157,30602.0,30601.0,0.37970093]
[1688212085161,0.88296126,30602.0,30601.0,0.37970093]
[1688212087058,0.88946126,30602.0,30601.0,0.02003903]
[1688212087772,0.91620035,30602.0,30601.0,0.02003903]
[1688212087964,1.91620035,30602.0,30601.0,0.02003903]
[1688212088377,0.0065,30601.0,30600.0,0.3545]
[1688212088677,0.0065,30601.0,30598.0,0.38090216]
[1688212088678,0.0065,30600.0,30598.0,0.38090216]
[1688212088861,0.3545,30599.0,30598.0,0.38090216]
[1688212089167,0.40157645,30599.0,30598.0,0.38090216]
[1688212089475,0.40157645,30599.0,30598.0,0.38137689]
[1688212090058,0.38334676,30599.0,30598.0,0.38137689]
[1688212090465,0.37991206,30599.0,30598.0,0.38137689]
[1688212090669,0.37991206,30599.0,30598.0,0.75472634]
[1688212090670,0.02541206,30599.0,30598.0,0.75472634]
[1688212090859,1.04634909,30602.0,30598.0,0.75472634]
[1688212091057,1.04634909,30602.0,30601.0,0.7132]
[1688212091256,1.04634909,30602.0,30601.0,0.75165945]
[1688212091767,1.53519067,30602.0,30601.0,0.75165945]
[1688212092371,0.51558067,30602.0,30601.0,0.75213177]
[1688212093057,0.51558067,30602.0,30601.0,0.71043177]
[1688212094660,0.53724506,30602.0,30601.0,0.69158232]
[1688212094964,0.51901537,30602.0,30601.0,0.69158232]
[1688212095154,0.53724506,30602.0,30601.0,0.69158232]
[1688212095353,0.02673909,30602.0,30601.0,0.71043177]
[1688212095764,0.04914935,30605.0,30601.0,0.71043177]
[1688212096065,0.04914935,30605.0,30604.0,0.734908]
[1688212096480,0.04914935,30605.0,30604.0,0.75375745]
[1688212096662,0.00012835,30605.0,30604.0,0.75375745]
[1688212097364,1.3608,30611.0,30604.0,0.75375745]
[1688212097365,1.0,30616.0,30608.0,0.0065]
[1688212097577,0.019602,30614.0,30611.0,1.0729]
[1688212097871,1.019601,30616.0,30611.0,1.11135345]
[1688212098072,1.019601,30616.0,30615.0,0.734901]
[1688212098265,0.108801,30617.0,30615.0,0.75375045]
[1688212098266,0.0196,30617.0,30615.0,0.75375045]
[1688212098564,0.0196,30617.0,30616.0,0.373001]
[1688212098774,0.0230347,30617.0,30616.0,0.373001]
[1688212098973,0.0230347,30617.0,30616.0,0.3534]
[1688212099264,0.50823091,30617.0,30616.0,0.3534]
[1688212099458,0.50823091,30617.0,30616.0,0.39261273]
[1688212099659,0.51166561,30617.0,30616.0,0.35416228]
[1688212100359,0.50823091,30617.0,30616.0,0.35416228]
[1688212100669,0.50823091,30617.0,30616.0,0.37301173]
[1688212101266,0.50823091,30617.0,30616.0,0.39261273]
[1688212101458,0.39217915,30617.0,30616.0,0.39261273]
[1688212101663,0.325,30620.0,30616.0,0.72586328]
[1688212101971,0.325,30620.0,30619.0,0.7153]
[1688212101972,0.0179714,30620.0,30619.0,0.7153]
[1688212102264,0.019598,30621.0,30619.0,0.75374845]
[1688212102568,0.04567483,30621.0,30620.0,0.39084745]
[1688212102764,0.019598,30621.0,30620.0,0.39084745]
[1688212102964,0.03656984,30621.0,30620.0,0.371998]
[1688212103163,0.03656984,30621.0,30620.0,0.3524]
[1688212103373,0.39450454,30621.0,30619.0,0.3545]
[1688212103670,0.372298,30620.0,30619.0,0.3545]
[1688212103865,0.41108812,30620.0,30619.0,0.3545]
[1688212104572,0.41288812,30620.0,30619.0,0.3545]
[1688212104771,0.78018812,30620.0,30619.0,0.06230152]
[1688212105068,1.39465843,30620.0,30619.0,0.3524]
[1688212105272,1.03672373,30620.0,30619.0,0.3524]
[1688212105572,1.05838812,30620.0,30619.0,0.371999]
[1688212105762,1.03672373,30620.0,30619.0,0.39084845]
[1688212105967,0.03672373,30620.0,30619.0,0.56154845]
[1688212106970,0.01712573,30620.0,30619.0,0.56154845]
[1688212107176,0.02698115,30622.0,30620.0,0.0065]
[1688212107359,0.04657815,30622.0,30621.0,0.92234745]
[1688212107770,0.53416589,30622.0,30621.0,0.92234745]
[1688212107971,0.53416589,30622.0,30621.0,0.903498]
[1688212107972,0.53760059,30622.0,30621.0,0.903498]
[1688212108361,0.55583028,30622.0,30621.0,0.903498]
[1688212108568,0.57578546,30622.0,30621.0,0.903498]
[1688212108873,0.57578546,30622.0,30621.0,0.8839]
[1688212109174,0.55755577,30622.0,30621.0,0.8839]
[1688212109889,0.57578546,30622.0,30621.0,0.5231]
[1688212110260,1.09558546,30622.0,30618.0,0.04948885]
[1688212110463,0.019598,30620.0,30618.0,0.41028885]
[1688212110867,0.019598,30620.0,30619.0,0.5185]
[1688212111071,0.019598,30620.0,30619.0,0.55694845]
[1688212112080,0.019598,30621.0,30619.0,0.55694845]
[1688212112377,0.04126239,30621.0,30620.0,0.5184]
[1688212112584,0.019598,30621.0,30620.0,0.537998]
[1688212112777,0.019598,30621.0,30620.0,0.55684745]
[1688212113479,0.02698115,30622.0,30620.0,0.55760296]
[1688212113674,0.02698115,30622.0,30621.0,0.01884945]
[1688212113881,0.04657815,30622.0,30621.0,0.39924645]
[1688212114476,0.53742021,30622.0,30621.0,0.40000063]
[1688212114680,0.53742021,30622.0,30621.0,0.91980063]
[1688212115068,0.51782321,30622.0,30621.0,0.91980063]
[1688212115279,0.53742021,30622.0,30621.0,0.91980063]
[1688212116880,0.06667119,30623.0,30621.0,0.92630063]
[1688212117180,0.019595,30626.0,30622.0,0.39924645]
[1688212117380,0.014595,30626.0,30625.0,0.3608]
[1688212117579,0.014595,30626.0,30625.0,0.39924445]
[1688212117784,0.0180297,30626.0,30625.0,0.380395]
[1688212118779,0.014595,30626.0,30625.0,0.380395]
[1688212119666,0.014595,30626.0,30625.0,0.39924445]
[1688212119871,0.014595,30626.0,30625.0,0.380395]
[1688212120077,0.014595,30626.0,30625.0,0.39924445]
[1688212122186,0.09242386,30627.0,30625.0,0.39924445]
[1688212122364,0.09242386,30627.0,30626.0,0.03844445]
[1688212122571,0.04125839,30627.0,30626.0,0.019595]
[1688212123679,0.0736103,30627.0,30626.0,0.019595]
[1688212123876,0.05538061,30627.0,30626.0,0.019595]
[1688212124582,0.05538061,30627.0,30626.0,0.542695]
[1688212125078,0.05538061,30627.0,30626.0,0.53525723]
[1688212125674,0.05538061,30627.0,30626.0,0.019595]
[1688212125879,0.05538061,30627.0,30626.0,0.52211822]
[1688212126177,0.05194591,30627.0,30626.0,0.52211822]
[1688212126379,0.05194591,30627.0,30626.0,0.54096767]
[1688212127285,0.05194591,30627.0,30626.0,0.4969374]
[1688212127472,0.05194591,30627.0,30626.0,0.019595]
[1688212127880,0.05538061,30627.0,30626.0,0.019595]
[1688212128282,0.05194591,30627.0,30626.0,0.538095]
[1688212129584,0.05194591,30627.0,30626.0,0.55694445]
[1688212130777,0.05194591,30627.0,30626.0,0.845595]
[1688212131577,0.05194591,30627.0,30626.0,0.86444445]
[1688212132884,0.03235191,30627.0,30626.0,0.86444445]
[1688212133083,0.05194691,30627.0,30626.0,0.845595]
[1688212133381,0.05538161,30627.0,30626.0,0.845595]
[1688212137283,0.05194691,30627.0,30626.0,0.845595]
[1688212138193,0.05194691,30627.0,30626.0,0.86444445]
[1688212139190,0.03235191,30627.0,30626.0,0.86444445]